Cogmind - Beta 16 @@@ ROGUE MODE // 2025.12.14 @ 16:32:27 Player: Lauriboy Result: Destroyed by NG-5O9(R) with Subdweller Laser Performance ------------- Evolutions (0) 0 Regions Visited (2) 400 Robots Destroyed (11) 55 Value Destroyed (230) 230 Prototype IDs (3) 60 Alien Tech Used (0) 0 Bonus (0) 0 TOTAL SCORE: 745 Bonus ------- None Cogmind --------- Core Integrity 0/250 Matter 213/300 Energy 197/450 System Corruption 0% Temperature Hot (281) Movement Core (450) Ox8 Location -10/Subcaves Parts ------- > --- POWER (1) -------- Ion Engine > --- PROPULSION (2) --- (None) > --- UTILITY (2) ------ Medium Storage Unit Large Battery > --- WEAPON (2) ------- Subdweller Beam Cannon Light Assault Rifle > --- INVENTORY (10) --- Light Treads Compact Wheel Heat Sink Small Storage Unit Mining Laser Peak State ------------ > --- POWER ------------ Ion Engine > --- PROPULSION ------- Wheel Subdweller Monowheel > --- UTILITY ---------- Medium Storage Unit Subdweller Optics > --- WEAPON ----------- Medium Laser Subdweller Laser > --- INVENTORY -------- Ion Engine Ion Engine Light Treads Compact Wheel Heat Sink Small Storage Unit Large Battery Medium Laser Light Assault Rifle Mining Laser [Rating: 11] Favorites ----------- Power Ion Engine Engine Ion Engine Propulsion Aluminum Leg Leg Aluminum Leg Wheel Wheel Utility Medium Storage Unit Device Heat Sink Storage Medium Storage Unit Weapon Medium Laser Energy Gun Medium Laser Energy Cannon Subdweller Beam Cannon Ballistic Gun Light Assault Rifle Build | -11 -10 -10 ------- Run | Yrd Mat Sub Slots Evolved . | . . . Power . | . . . Propulsion . | . . . Utility . | . . . Weapon . | . . . Parts Attached 22 | 6 7 9 Power 5 | 1 2 2 Engine 5 | 1 2 2 Core . | . . . Reactor . | . . . Propulsion 5 | 2 . 3 Treads . | . . . Leg 2 | 2 . . Wheel 3 | . . 3 Hover . | . . . Flight . | . . . Utility 6 | 1 3 2 Device 3 | . 2 1 Storage 3 | 1 1 1 Processor . | . . . Hackware . | . . . Protection . | . . . Artifact . | . . . Weapon 6 | 2 2 2 Energy Gun 4 | 2 1 1 Energy Cannon 1 | . . 1 Ballistic Gun 1 | . 1 . Ballistic Cannon . | . . . Launcher . | . . . Special Weapon . | . . . Impact Weapon . | . . . Slashing Weapon . | . . . Piercing Weapon . | . . . Special Melee Weapon . | . . . Unidentified Prototypes . | . . . Parts Lost 9 | . . 9 Power 2 | . . 2 Propulsion 4 | . . 4 Utility 1 | . . 1 Weapon 2 | . . 2 Highest Loss Streak 7 | . . 7 To Critical Strikes . | . . . Average Backups 8 | 2 9 9 Power 1 | . 1 1 Propulsion 2 | 1 3 2 Utility 2 | . 2 2 Weapon 1 | . 1 2 Tool/Special . | . . . Unused Backups 4 | . 1 3 Power . | . . . Propulsion 2 | . 1 1 Utility 1 | . . 1 Weapon 1 | . . 1 Tool/Special . | . . . Average Slot Usage (%) 97 | . 99 95 Engine 13 | . 14 13 Leg 15 | . 28 4 Wheel 10 | . . 20 Device 13 | . 13 13 Storage 14 | . 14 14 Energy Gun 27 | . 28 26 Peak Build Rating 11 | 6 8 11 Average Rating 8 | 4 7 9 On Entrance 4 | . 6 8 Avg Prop Armor Cover (%) . | . . . Naked Turns . | . . . Heaviest Build 23 | 14 20 23 Greatest Support 30 | 20 20 30 Greatest Overweight (x) 3 | 3 . 1 Average Overweight (x) . | . . . Largest Inventory Capacity 10 | 8 10 10 Average Capacity 9 | 7 9 10 Most Carried 10 | 6 10 10 Average Carried 9 | 3 9 9 Final Capacity 10 | 8 10 10 Final Carried 10 | 6 10 5 Class Distribution -------------------- 100% | Mutant Dominant Class ---------------- Mutant | -10/Materials Mutant | -10/Subcaves Resources | -11 -10 -10 ----------- Run | Yrd Mat Sub Matter Collected 474 | 260 63 151 Remotely . | . . . Salvage Created 250 | . 128 122 Parts 18 | . 11 7 Haulers Intercepted . | . . . Recyclers Shooed . | . . . Parts Field Recycled . | . . . Retrieved Matter . | . . . Parts Self-Destructed . | . . . Prevented . | . . . Parts Restored . | . . . Kills | -11 -10 -10 ------- Run | Yrd Mat Sub Combat Hostiles Destroyed 10 | . 7 3 Guns 9 | . 6 3 Classes Destroyed 4 | . 3 1 Watcher 1 | . 1 . Swarmer 6 | . 6 . Grunt 1 | . 1 . Subdweller 3 | . . 3 Best Kill Streak 7 | . 7 1 Combat Bots Only 6 | . 6 1 Max Kills in Single Turn 2 | . 2 1 Gunslinging 1 | . 1 . Exploded . | . . . Melee . | . . . Uniques/NPCs Destroyed . | . . . Combat | -11 -10 -10 -------- Run | Yrd Mat Sub Hostile Shots Fired 98 | . 47 51 Missed 23 | . 12 11 Hits 75 | . 35 40 Projectile 75 | . 35 40 Critical Strikes 2 | . 1 1 Damage Taken 1234 | . 319 915 Core 264 | . 74 190 Absorbed by Shields . | . . . Core Remaining (%) 100 | 100 . . Volleys Fired 33 | . 16 17 Largest 2 | . 2 2 Hottest 110 | . 100 110 Shots Fired 62 | . 32 30 Gun 57 | . 32 25 Cannon 5 | . . 5 Launcher . | . . . Special . | . . . Kinetic 3 | . . 3 Thermal 59 | . 32 27 Explosive . | . . . Electromagnetic . | . . . Robot Hit Streak 13 | . 8 13 Robot Miss Streak 2 | . 2 1 Penetration Max . | . . . Secondary Targets 1 | . 1 . Max Gunslinging Chain 1 | . 1 . Shots Hit Robots 44 | . 19 25 Core Hits 17 | . 9 8 Critical Kills . | . . . Critical Parts Destroyed . | . . . Critical Strikes 3 | . 2 1 Burn 3 | . 2 1 Melee Attacks . | . . . Impact . | . . . Slashing . | . . . Piercing . | . . . Sneak Attacks . | . . . Combat Hostiles . | . . . Follow-up Attacks . | . . . Damage Inflicted 693 | . 261 432 Guns 549 | . 261 288 Cannons 144 | . . 144 Explosions . | . . . Melee . | . . . Ramming . | . . . Kinetic 20 | . . 20 Thermal 673 | . 261 412 Explosive . | . . . Electromagnetic . | . . . Impact . | . . . Slashing . | . . . Piercing . | . . . Highest Corruption . | . . . Average Corruption . | . . . Corruption Purged . | . . . Corruption Blocked . | . . . Overload Shots . | . . . Overflow Damage . | . . . Projectiles . | . . . Explosions . | . . . Melee . | . . . Knockbacks . | . . . Impact . | . . . Kinetic . | . . . Secondary . | . . . Self-Inflicted Damage . | . . . Shots . | . . . Rammed . | . . . Targets Rammed . | . . . Kicked . | . . . Crushed . | . . . Highest Temperature 306 | . 54 306 Average Temperature 46 | . 26 150 Received Heat Transfer 591 | . 78 513 Effects 1 | . . 1 Matter Decay 1 | . . 1 Siege Activations . | . . . Martial Activations . | . . . Shielding Activations . | . . . Robots Disrupted . | . . . Combat Hostiles . | . . . Robots Corrupted . | . . . Combat Hostiles . | . . . Parts Fried . | . . . Impact Corruptions . | . . . Robots Melted 1 | . 1 . Combat Hostiles 1 | . 1 . Parts Melted 3 | . 2 1 Heat Transferred 1839 | . 925 914 Parts Sabotaged . | . . . Parts Stolen . | . . . Parts Stripped . | . . . Power Chain Reactions . | . . . Alert | -11 -10 -10 ------- Run | Yrd Mat Sub Maximum Alert Level . | . . . Low Security (%) 100 | 100 100 . Level 1 . | . . . Level 2 . | . . . Level 3 . | . . . Level 4 . | . . . Level 5 . | . . . High Security . | . . . Max Security . | . . . Peak Influence 141 | . 141 . Initial . | . . . Average 41 | . 50 . Influence Increases 211 | . 211 . Destroy 0b10 Robot/C 140 | . 140 . Destroy 0b10 Robot/NC 5 | . 5 . Destroy Leader 22 | . 22 . Successful Hack 14 | . 14 . Lose Combat Pursuer 30 | . 30 . Influence Decreases 211 | . 189 22 Entered New Map 11 | . . 11 Time Decay 200 | . 189 11 Squads Dispatched . | . . . Investigation . | . . . Extermination . | . . . Reinforcement . | . . . Assault . | . . . Garrison . | . . . Intercept . | . . . Searches Triggered . | . . . Construction Impeded . | . . . Haulers Reinforced . | . . . Active Scanning Responses . | . . . Cargo Convoy Interrupts . | . . . Stealth | -11 -10 -10 --------- Run | Yrd Mat Sub Distress Signals 1 | . 1 . Communications Jammed . | . . . Distress Signals . | . . . Times Spotted 20 | . 12 8 Peak Tracking Total 4 | . 4 4 Tactical Retreats 2 | . 1 1 Traps | -11 -10 -10 ------- Run | Yrd Mat Sub Traps Triggered . | . . . Indirectly . | . . . Trap Hack Attempts . | . . . Triggered . | . . . Disarmed . | . . . Reprogrammed . | . . . Reused . | . . . Traps Extracted . | . . . Installed . | . . . Triggered . | . . . Machines | -11 -10 -10 ---------- Run | Yrd Mat Sub Machines Disabled . | . . . Max in Single Turn . | . . . Machines Repaired . | . . . Machines Dismantled . | . . . Machines Sabotaged . | . . . Overloaded Fab Kills . | . . . Hacking | -11 -10 -10 --------- Run | Yrd Mat Sub Machines Accessed 2 | . 2 . Terminals 2 | . 2 . Fabricators . | . . . Repair Stations . | . . . Recycling Units . | . . . Scanalyzers . | . . . Garrison Access . | . . . Total Hacks 7 | . 7 . Successful 2 | . 2 . Failed 5 | . 5 . Catastrophic . | . . . Database Lockouts . | . . . Manual . | . . . Terminals 7 | . 7 . Fabricators . | . . . Repair Stations . | . . . Recycling Units . | . . . Scanalyzers . | . . . Garrison Access . | . . . Terminal Hacks 2 | . 2 . Prototype ID Bank 1 | . 1 . Locate Traps 1 | . 1 . Fabricator Hacks . | . . . Repair Station Hacks . | . . . Recycling Unit Hacks . | . . . Scanalyzer . | . . . Garrison Access Hacks . | . . . Unauthorized Hacks . | . . . Terminals . | . . . Fabricators . | . . . Repair Stations . | . . . Recycling Units . | . . . Scanalyzers . | . . . Garrison Access . | . . . Data Cores Recovered . | . . . Used . | . . . Hacking Detections 2 | . 2 . Full Trace Events . | . . . Feedback Events . | . . . Feedback Blocked . | . . . Robot Schematics Acquired . | . . . Robots Built . | . . . Authchips . | . . . Time . | . . . Total Robot Build Rating . | . . . Part Schematics Acquired . | . . . Parts Built . | . . . Authchips . | . . . Time . | . . . Total Part Build Rating . | . . . Part Studies Acquired . | . . . Parts Repaired . | . . . Time . | . . . Parts Recycled . | . . . Recycled Matter . | . . . Retrieved Matter . | . . . Retrieved Components . | . . . Parts Scanalyzed . | . . . Part Schematics Acquired . | . . . Parts Damaged . | . . . Bothacking | -11 -10 -10 ------------ Run | Yrd Mat Sub Used RIF Installer . | . . . Robots Hacked . | . . . Non-combat . | . . . Combat . | . . . Robot Hacks Applied . | . . . Relay Couplers Released . | . . . Fabnet Peak Effective % . | . . . Robots Rewired . | . . . Allies Hacked . | . . . Hacks Repelled . | . . . Allies | -11 -10 -10 -------- Run | Yrd Mat Sub Total Allies . | . . . Largest Group . | . . . Highest-Rated Group . | . . . Highest-Rated Ally . | . . . Total Orders . | . . . Ally Attacks . | . . . Total Damage . | . . . Kills . | . . . Allies Corrupted . | . . . Allies Melted . | . . . Intel | -11 -10 -10 ------- Run | Yrd Mat Sub Active Infowar (turns) 167 | . . 167 Optics 167 | . . 167 Robot Analysis Total . | . . . Derelict Logs Recovered . | . . . Drone Launches . | . . . Drone Recoveries . | . . . Exploration | -11 -10 -10 ------------- Run | Yrd Mat Sub Turns Passed 1070 | 97 446 527 Spaces Moved 820 | 69 302 449 Core 12 | 12 . . Treads . | . . . Legs 416 | 57 302 57 Wheels 392 | . . 392 Hover . | . . . Flight . | . . . Fastest Speed 50 | 50 120 90 Average Speed 109 | 120 120 101 Slowest Speed 200 | 200 120 190 Overloaded Moves . | . . . Propulsion Burnouts . | . . . Robots Hopped . | . . . Potential Cave-ins . | . . . Cave-ins Triggered . | . . . Exploration Rate (%) 23 | 5 28 36 Regions Visited 2 Branch Regions 1 Pre-discovered Areas . | . . . Known Exits Taken . | . . . Unknown Exits Taken 2 | 1 1 . Scrap Searched . | . . . Spaces Dug . | . . . Terrain Destroyed . | . . . Melee . | . . . Projectile . | . . . AOE . | . . . Terrain Rammed . | . . . Walls Destroyed . | . . . Machines Disabled . | . . . Actions | -11 -10 -10 --------- Run | Yrd Mat Sub Total 927 | 80 354 493 Wait 31 | . 20 11 Move 818 | 68 301 449 Hop . | . . . Pick Up 13 | 6 4 3 Fast Attach 7 | 6 1 . Attach 7 | . . 7 Detach . | . . . Swap 10 | . 7 3 Drop 8 | . 5 3 Fire 33 | . 16 17 Melee . | . . . Ram . | . . . Kick . | . . . Crush . | . . . Escape Stasis . | . . . Rewire . | . . . Trap . | . . . Miscellaneous . | . . . Route ------- -11/Scrapyard -10/Materials -10/Subcaves History --------- Turn | Location | Event 17 | -11/Scrapyard | Discovered new exit (range 15) 98 | -11/Scrapyard | Entered Materials 233 | -10/Materials | Discovered new exit (range 14) 315 | -10/Materials | Build established: Mutant 544 | -10/Materials | Entered Subcaves 687 | -10/Subcaves | A swath of the cavern ceiling suddenly collapsed 1060 | -10/Subcaves | Core integrity fell below 50% 1068 | -10/Subcaves | Core integrity fell below 20% 1071 | -10/Subcaves | Destroyed by NG-5O9(R) with Subdweller Laser Last Messages --------------- A swath of the cavern ceiling suddenly collapses. Acquired 10 matter. Dropped Med. Laser. Acquired Sub. Beam Cannon. Sub. Optics shoots sparks and powers down. Ion Engine destroyed. Sub. Monowheel destroyed. Wheel destroyed. WL-L8M(R) destroyed. Med. Laser destroyed. Broken Sub. Optics destroyed. Sub. Laser destroyed. OZ-6H1(R) affixes Scrap Shield Fragment to Scrap Shield. Ion Engine destroyed. OZ-6H1(R) affixes Scrap Shield Fragment to Scrap Shield. Critical hit (Meltdown: +270). Overheating: Matter decay (-44). Map ----- +----------------------------------------------------+ | ?????????????## #???????????????? | | ?????????????## #???????????????? | | ????????????## #???????????????? | | ????????????# ## ##???????????????? | | ????????????# #? #????????????????? | | ????????????## #######? #???????????????? | | ?????????????# ##?????? ???????????????? | | ?????????????## ##????? #??????????????? | | ??????????????## ####??? ##??????????????? | | ???????????????## ##?? #???????????????? | | ????????????????## #?? #???????????????? | | ?????????????????## ##??####???????????????? | | ??????????????????# ##????????????????????? | | ?????????????###### #????????????????????? | | ?????????????# ##???????????????????? | | ????????????# ##??????????????????? | | ????????????# ### #??????????????????? | | ????????????# #### ##?????????????????? | | ????????????# #?# ##????????????????? | | ????????????# ??# ##???????????????? | | ???????????# ???# ##??????????????? | | ???????????# #???# #??????????????? | | ???????????# ????# ### ##?????????????? | | ???????????## ?????# #### #?????????????? | | ????????????##????# #;## ##?????????????? | | ??????????????????# ####@[%R #??????????????? | | ??????????????????###??# R #??????????????? | | ???????????????????????# R #??????????????? | | ???????????????????????## ##?????????????? | | ????????????????????????## #?????????????? | | ?????????????????????????# #?????????????? | | ?????????????????????????# ##?????????????? | | ?????????????????????????# ######??????????????? | | ?????????????????????????###???????????????????? | | ???????????????????????????????????????????????? | | ???????????????????????????????????????????????? | | ???????????????????????????????????????????????? | | ???????????????????????????????????????????????? | | ???????????????????????????????????????????????? | | ???????????????????????????????????????????????? | | ???????????????????????????????????????????????? | | ???????????????????????????????????????????????? | | ???????????????????????????????????????????????? | | ???????????????????????????????????????????????? | | ???????????????????????????????????????????????? | | ???????????????????????????????????????????????? | | ???????????????????????????????????????????????? | | ???????????????????????????????????????????????? | | ???????????????????????????????????????????????? | | ???????????????????????????????????????????????? | +----------------------------------------------------+ Best States ------------- Heat Dissipation 35 Energy Generation 10 Energy Capacity 450 Matter Stores 300 Matter Capacity 300 Sight Range 21 Terrain Scan Density 10 Evasion (%) 55 Item Schematics ----------------- None Robot Schematics ------------------ None Fabricated ------------ Nothing Repaired ---------- Nothing Studied --------- None Alien Tech Used ----------------- None Achievements -------------- None Challenges ------------ None Game ------ Seed GhostHybridCapacitor Manual? 0 Play Time 00:28:11 Cumulative 23.2 hours Start 2025.12.14 @ 15:56:50 End 2025.12.14 @ 16:32:27 Sessions 1 Manual Loads 0 Difficulty Rogue Special Mode None Game No. 28 Rogue 28 Adventurer 0 Explorer 0 Win Type - Total 0 Types 0/0/0/0/0/0/0/0/0/0 Lore% 12 Gallery% 18 Achievement% 16 Wizard Run 0 Options --------- Layout 1 ASCII 0 Keyboard 1 Movement Vi Keybinds 0 Fullscreen 1 Font 36/Smallcaps Map View 50x35 Zoom Use 0% Tactical HUD 0 Map Filters NONE Filters NONE Steam 1 RUN: 80129365-1156-462b-b081-3afc9586625b